bitfinex/quotes_BTCUSD_20250526
["timestamp","ask_amount","ask_price","bid_price","bid_amount"]
[1748242181417,0.89227476,109480.0,109470.0,0.004]
[1748242181619,1.03811476,109480.0,109470.0,0.004]
[1748242183804,1.03211476,109480.0,109470.0,0.004]
[1748242184013,0.66507803,109480.0,109470.0,0.004]
[1748242184976,0.66507803,109480.0,109470.0,0.002]
[1748242185132,0.66507803,109480.0,109440.0,0.5430934]
[1748242185467,0.0191,109450.0,109440.0,0.5430934]
[1748242185777,0.0191,109450.0,109440.0,1.0030364]
[1748242185972,0.0191,109450.0,109440.0,0.8518364]
[1748242186855,0.0191,109450.0,109440.0,0.8568364]
[1748242187035,0.0376,109460.0,109440.0,0.8568364]
[1748242187353,0.0376,109460.0,109440.0,0.3918934]
[1748242187636,0.0191,109450.0,109440.0,0.3918934]
[1748242187827,0.0191,109450.0,109440.0,0.4018934]
[1748242187987,0.0191,109450.0,109440.0,0.3968934]
[1748242188191,0.0382,109450.0,109440.0,0.01203164]
[1748242188397,0.0375,109440.0,109410.0,1.10136471]
[1748242188599,0.0194,109430.0,109420.0,0.172016]
[1748242188762,0.0144,109430.0,109420.0,0.53841791]
[1748242189167,0.0144,109430.0,109420.0,0.5500866]
[1748242189610,0.0141,109440.0,109420.0,0.5500866]
[1748242189832,0.11142456,109450.0,109430.0,0.36640191]
[1748242190018,0.11142456,109450.0,109440.0,0.003]
[1748242190333,0.09942456,109450.0,109440.0,0.003]
[1748242190533,0.09942456,109450.0,109430.0,0.3664662]
[1748242191508,0.09342456,109450.0,109430.0,0.3664662]
[1748242191720,0.11292456,109450.0,109430.0,0.3664662]
[1748242192131,0.11292456,109450.0,109430.0,0.3684662]
[1748242192642,0.0183,109440.0,109430.0,0.3684662]
[1748242192815,0.0183,109440.0,109430.0,0.5985992]
[1748242193130,0.0379,109440.0,109430.0,0.5985992]
[1748242193414,0.0183,109440.0,109430.0,0.5985992]
[1748242194135,0.0183,109440.0,109430.0,0.6005992]
[1748242194337,0.0183,109440.0,109430.0,0.5985992]
[1748242194766,0.0183,109440.0,109430.0,0.5995992]
[1748242195185,0.0303,109440.0,109430.0,0.5995992]
[1748242195392,0.0303,109440.0,109430.0,0.131233]
[1748242195624,0.0488,109440.0,109430.0,0.4976992]
[1748242196344,0.0488,109440.0,109430.0,0.131233]
[1748242196696,0.0488,109440.0,109430.0,0.4976992]
[1748242198080,0.0303,109440.0,109430.0,0.4976992]
[1748242199199,0.0243,109440.0,109430.0,0.4976992]
[1748242199672,0.0438,109440.0,109430.0,0.4976992]
[1748242200346,0.0438,109440.0,109430.0,0.131233]
[1748242200550,0.0438,109440.0,109430.0,0.13081178]
[1748242200767,0.0438,109440.0,109430.0,0.00257878]
[1748242201095,0.13334556,109440.0,109430.0,0.00257878]
[1748242203066,0.13334556,109440.0,109430.0,0.36904498]
[1748242206060,0.13334556,109440.0,109430.0,0.00257878]
[1748242206330,0.13334556,109440.0,109430.0,0.36904498]
[1748242207003,0.12734556,109440.0,109430.0,0.36904498]
[1748242214680,0.12134556,109440.0,109430.0,0.36904498]
[1748242216257,0.12104556,109440.0,109430.0,0.36904498]
[1748242218090,0.12104556,109440.0,109430.0,0.73551118]
[1748242220712,0.012,109440.0,109430.0,0.73551118]
[1748242220855,0.012,109440.0,109430.0,0.75351118]
[1748242222378,0.006,109440.0,109430.0,1.60883218]
[1748242224680,0.006,109440.0,109430.0,1.75475218]
[1748242225556,0.006,109440.0,109430.0,1.7521734]
[1748242225763,0.006,109440.0,109430.0,1.7551734]
[1748242226059,0.006,109440.0,109430.0,1.84671896]
[1748242226228,0.006,109460.0,109450.0,0.3850662]
[1748242226429,0.006,109460.0,109450.0,2.3941944]
[1748242226692,0.006,109460.0,109450.0,2.1590614]
[1748242226848,0.006,109460.0,109450.0,1.7925952]
[1748242227056,0.006,109460.0,109450.0,2.1590614]
[1748242227426,0.006,109460.0,109450.0,1.7925952]
[1748242227632,0.006,109460.0,109450.0,2.1590614]
[1748242228275,0.007,109460.0,109450.0,1.9183504]
[1748242228476,0.007,109460.0,109450.0,1.6608634]
[1748242228692,0.008,109460.0,109450.0,1.2673134]
[1748242228864,0.008,109460.0,109450.0,0.9008472]
[1748242229042,0.008,109460.0,109450.0,0.8415772]
[1748242229495,0.008,109460.0,109450.0,0.8309912]
[1748242230231,0.002,109460.0,109450.0,0.8309912]
[1748242232850,0.002,109460.0,109450.0,1.1740424]
[1748242233190,0.002,109460.0,109450.0,0.8075762]
[1748242234014,0.001,109460.0,109450.0,0.8075762]
[1748242234434,0.0366,109480.0,109450.0,0.8075762]
[1748242234588,0.12614556,109480.0,109470.0,0.3664662]
[1748242235843,0.12823641,109480.0,109470.0,0.3664662]
[1748242237885,0.13023641,109480.0,109470.0,0.37737566]
[1748242238887,0.12423641,109480.0,109470.0,0.37737566]
[1748242243165,0.12423641,109480.0,109470.0,0.3664662]
[1748242244445,0.12423641,109480.0,109470.0,0.37782971]
[1748242245312,0.12423641,109480.0,109470.0,0.12693814]
[1748242246090,0.12423641,109480.0,109470.0,0.37763213]
[1748242246453,0.11823641,109480.0,109470.0,0.37763213]
[1748242252027,0.11283641,109480.0,109470.0,0.37763213]
[1748242254311,0.10683641,109480.0,109470.0,0.37763213]
[1748242257945,0.09363641,109480.0,109470.0,0.39623213]
[1748242258379,0.00409085,109480.0,109470.0,0.39623213]
[1748242258589,0.00409085,109480.0,109470.0,0.82163213]
[1748242260601,0.00409085,109480.0,109470.0,0.70469213]
[1748242260882,0.00409085,109480.0,109470.0,0.64931213]
[1748242262012,0.19911646,109500.0,109470.0,0.64931213]
[1748242262235,0.08954556,109490.0,109480.0,0.36626862]
[1748242262436,0.10704556,109490.0,109480.0,0.36626862]
[1748242263445,0.11104556,109490.0,109480.0,0.36626862]
[1748242264395,0.11404556,109490.0,109480.0,0.36626862]
[1748242266736,0.11404556,109490.0,109470.0,0.02996351]
[1748242266985,0.11404556,109490.0,109480.0,0.36626862]
[1748242267762,0.10704556,109490.0,109480.0,0.36626862]
[1748242268067,0.10904556,109490.0,109480.0,0.36626862]
[1748242268267,0.10804556,109490.0,109480.0,0.36626862]
[1748242268480,0.10704556,109490.0,109480.0,0.36626862]
[1748242268616,0.11004556,109490.0,109480.0,0.36626862]
[1748242268818,0.47631418,109490.0,109480.0,0.36626862]
[1748242269801,0.47031418,109490.0,109480.0,0.36626862]
[1748242270480,0.36626862,109490.0,109480.0,0.36626862]
[1748242270655,0.51285066,109500.0,109480.0,0.36626862]
[1748242270827,0.59245632,109500.0,109480.0,0.36626862]
[1748242271425,0.60231202,109500.0,109480.0,0.38406862]
[1748242271658,0.2360434,109500.0,109480.0,0.38406862]
[1748242271874,0.60231202,109500.0,109480.0,0.38406862]
[1748242272059,0.61084506,109500.0,109480.0,0.38406862]
[1748242272412,0.61384506,109500.0,109480.0,0.38406862]
[1748242273303,0.61584506,109500.0,109480.0,0.38406862]
[1748242273601,0.65194506,109500.0,109480.0,0.38406862]
[1748242275351,0.40056862,109490.0,109480.0,0.36626862]
[1748242275696,0.0171,109490.0,109480.0,0.36626862]
[1748242277069,0.0191,109490.0,109480.0,0.36626862]
[1748242277272,0.0211,109490.0,109480.0,0.36626862]
[1748242277475,0.0151,109490.0,109480.0,0.36626862]
[1748242277831,0.004,109490.0,109480.0,0.36626862]
[1748242280334,0.004,109490.0,109480.0,0.73253724]
[1748242281281,0.004,109490.0,109470.0,0.036]
[1748242281427,0.004,109490.0,109480.0,0.36626862]
[1748242282623,0.002,109490.0,109480.0,0.36626862]
[1748242283951,0.004,109490.0,109480.0,0.36626862]
[1748242285072,0.63497042,109500.0,109480.0,0.36626862]
[1748242286160,0.64350843,109500.0,109480.0,0.36626862]
[1748242286317,0.64750843,109500.0,109480.0,0.36626862]
[1748242288860,0.63863013,109500.0,109480.0,0.36626862]
[1748242289188,0.63863013,109500.0,109480.0,0.38416862]
[1748242290437,0.63863013,109500.0,109480.0,0.0179]
[1748242290623,0.63863013,109500.0,109480.0,0.38416862]
[1748242291227,0.27236151,109500.0,109480.0,0.38416862]
[1748242291432,0.63863013,109500.0,109480.0,0.38416862]
[1748242292843,0.63263013,109500.0,109480.0,0.38416862]
[1748242293390,0.16163563,109500.0,109490.0,0.36626862]
[1748242293646,0.30747563,109500.0,109490.0,0.36626862]
[1748242295180,0.30547563,109500.0,109490.0,0.36626862]
[1748242295516,0.30647563,109500.0,109490.0,0.36626862]
[1748242295933,0.30847563,109500.0,109490.0,0.36626862]
[1748242297325,0.01454085,109490.0,109480.0,0.0179]
[1748242297529,0.0171,109480.0,109460.0,0.0376]
[1748242297742,0.0171,109480.0,109470.0,0.36626862]
[1748242297743,0.12118641,109480.0,109470.0,0.36626862]
[1748242297913,0.24992641,109480.0,109470.0,0.36626862]
[1748242298416,0.24992641,109480.0,109470.0,0.38376862]
[1748242300625,0.24992641,109480.0,109470.0,0.0175]
[1748242300855,0.24392641,109480.0,109470.0,0.0175]
[1748242307500,0.63029503,109480.0,109460.0,0.40516862]
[1748242308107,0.64017253,109480.0,109460.0,0.40516862]
[1748242308471,0.64017253,109480.0,109460.0,0.0389]
[1748242308667,0.63417253,109480.0,109460.0,0.0409]
[1748242308913,0.61407253,109480.0,109460.0,0.40716862]
[1748242309120,0.46823253,109480.0,109470.0,0.0195]
[1748242309269,0.46823253,109480.0,109470.0,0.0382]
[1748242314837,0.46823253,109480.0,109470.0,0.0195]
[1748242316414,0.46223253,109480.0,109470.0,0.0195]
[1748242318834,0.46223253,109480.0,109460.0,0.40616862]
[1748242319239,0.36626862,109470.0,109460.0,0.40616862]
[1748242319830,0.46222123,109480.0,109460.0,0.40616862]
[1748242320028,0.46222123,109480.0,109460.0,0.40816862]
[1748242320257,0.45235503,109480.0,109460.0,0.40816862]
[1748242320621,0.46228903,109480.0,109460.0,0.40716862]
[1748242321082,0.46228903,109480.0,109460.0,0.40916862]
[1748242321411,0.46228903,109480.0,109460.0,0.40716862]
[1748242321832,0.46228903,109480.0,109460.0,0.0409]
[1748242322491,0.46228903,109480.0,109460.0,0.0429]
[1748242322943,0.36626862,109470.0,109460.0,0.0429]
[1748242323282,0.47175503,109480.0,109460.0,0.0429]
[1748242323478,0.47175503,109480.0,109460.0,0.40916862]
[1748242323815,0.48165113,109480.0,109460.0,0.40716862]
[1748242324018,0.47565113,109480.0,109460.0,0.40616862]
[1748242324218,0.47565113,109480.0,109460.0,0.0429]
[1748242324597,0.45625113,109480.0,109460.0,0.0399]
[1748242324804,0.45625113,109480.0,109460.0,0.40716862]
[1748242325009,0.45625113,109480.0,109460.0,0.40916862]
[1748242326236,0.45625113,109480.0,109470.0,0.0391]
[1748242326237,0.60213113,109480.0,109470.0,0.0391]
[1748242326822,0.23586251,109480.0,109470.0,0.0391]
[1748242326954,0.60213113,109480.0,109470.0,0.0391]
[1748242328140,0.60213113,109480.0,109470.0,0.0191]
[1748242329059,0.60213113,109480.0,109460.0,0.38576862]
[1748242329338,0.60213113,109480.0,109460.0,0.40446862]
[1748242329678,0.23586251,109480.0,109460.0,0.0382]
[1748242329886,0.60213113,109480.0,109460.0,0.40446862]
[1748242330286,0.60213113,109480.0,109460.0,0.40646862]
[1748242330975,0.60213113,109480.0,109460.0,0.40746862]
[1748242331864,0.59613113,109480.0,109460.0,0.40746862]
[1748242332899,0.45025113,109480.0,109460.0,0.38876862]
[1748242333097,0.22986251,109480.0,109470.0,0.0194]
[1748242333747,0.22986251,109480.0,109470.0,0.0044]
[1748242333952,0.08398251,109480.0,109470.0,0.0247]
[1748242334153,0.22986251,109480.0,109470.0,0.0247]
[1748242334310,0.22986251,109480.0,109470.0,0.39096862]
[1748242334510,0.08398251,109480.0,109470.0,0.39096862]
[1748242336509,0.0098961,109480.0,109470.0,0.39096862]
[1748242336965,0.16042085,109490.0,109480.0,0.0391]
[1748242337124,0.25981891,109490.0,109480.0,0.0391]
[1748242337728,0.17027335,109490.0,109480.0,0.0391]
[1748242338281,0.17227335,109490.0,109480.0,0.0391]
[1748242338492,0.02639335,109490.0,109480.0,0.40536862]
[1748242338838,0.01654085,109490.0,109480.0,0.40536862]
[1748242339040,0.002,109490.0,109480.0,0.40536862]
[1748242339264,0.003,109490.0,109480.0,0.77163724]
[1748242339507,0.15211777,109500.0,109480.0,0.36626862]
[1748242339680,0.25620418,109500.0,109490.0,0.0397]
[1748242339890,0.26613888,109500.0,109490.0,0.0397]
[1748242340087,0.26843699,109500.0,109490.0,0.0397]
[1748242341232,0.26943699,109500.0,109490.0,0.0397]
[1748242341442,0.27243699,109500.0,109490.0,0.0397]
[1748242342085,0.02247058,109500.0,109490.0,0.0397]
[1748242342289,0.16735058,109500.0,109490.0,0.0397]
[1748242342591,0.14888,109500.0,109490.0,0.0397]
[1748242342794,0.14988,109500.0,109490.0,0.0397]
[1748242347199,0.14388,109500.0,109490.0,0.0397]
[1748242348366,0.51014862,109500.0,109490.0,0.0397]
[1748242350227,0.36726862,109500.0,109490.0,0.0397]
[1748242350380,0.51310862,109500.0,109490.0,0.0397]
[1748242354956,0.50710862,109500.0,109490.0,0.0397]
[1748242355627,0.36126862,109500.0,109480.0,0.38606862]
[1748242355833,0.50710862,109500.0,109480.0,0.40556862]
[1748242356530,0.51710072,109500.0,109480.0,0.40556862]
[1748242362444,0.51710072,109500.0,109480.0,0.0393]
[1748242362649,0.1558321,109500.0,109480.0,0.40556862]
[1748242362822,0.52210072,109500.0,109480.0,0.40556862]
[1748242363155,0.51610072,109500.0,109480.0,0.40556862]
[1748242365116,0.51610072,109500.0,109480.0,0.0393]
[1748242365332,0.36626862,109490.0,109480.0,0.40556862]
[1748242366734,0.51598872,109500.0,109480.0,0.40556862]
[1748242366939,0.50610862,109500.0,109480.0,0.40556862]
[1748242367440,0.51594332,109500.0,109480.0,0.40556862]
[1748242368121,0.52447592,109500.0,109480.0,0.40556862]
[1748242369467,0.36626862,109490.0,109480.0,0.0393]
[1748242369678,0.45581418,109490.0,109470.0,0.40456862]
[1748242369887,0.47035503,109490.0,109480.0,0.36626862]
[1748242370089,0.48019933,109490.0,109480.0,0.36626862]
[1748242370643,0.47419933,109490.0,109480.0,0.36626862]
[1748242371795,0.11393071,109490.0,109480.0,0.36626862]
[1748242373759,0.48019933,109490.0,109470.0,0.40456862]
[1748242374808,0.48019933,109490.0,109470.0,0.40556862]
[1748242375038,0.48019933,109490.0,109470.0,0.40656862]
[1748242375655,0.11393071,109490.0,109470.0,0.40656862]
[1748242377324,0.11393071,109490.0,109470.0,0.19052436]
[1748242377528,0.15143071,109490.0,109470.0,0.36826862]
[1748242378148,0.0098443,109490.0,109480.0,0.73253724]
[1748242378354,0.0038443,109490.0,109480.0,0.73253724]
[1748242378555,0.04737001,109510.0,109480.0,1.95151386]
[1748242378755,0.03872031,109510.0,109500.0,0.36626862]
[1748242379365,0.03232188,109510.0,109500.0,0.73253724]
[1748242379826,9.077e-05,109510.0,109500.0,0.73253724]
[1748242380276,9.077e-05,109510.0,109500.0,1.24464586]
[1748242380473,9.077e-05,109510.0,109500.0,0.91707724]
[1748242382495,9.077e-05,109510.0,109500.0,0.92107724]
[1748242386146,0.03188807,109530.0,109500.0,0.92107724]
[1748242386275,0.13597448,109530.0,109520.0,0.36626862]
[1748242386679,0.13497718,109530.0,109520.0,0.36626862]
[1748242387115,0.13497718,109530.0,109520.0,0.73253724]
[1748242387327,0.01454085,109530.0,109520.0,0.73253724]
[1748242388849,0.02,109540.0,109520.0,1.09774724]
[1748242389114,0.12408641,109540.0,109530.0,0.36626862]
[1748242389322,0.12408641,109540.0,109530.0,0.73146862]
[1748242390696,0.14278641,109540.0,109530.0,0.73146862]
[1748242390925,0.14478641,109540.0,109530.0,0.73146862]
[1748242393157,0.13878641,109540.0,109530.0,0.73146862]
[1748242394042,0.13878641,109540.0,109530.0,0.3652]
[1748242395912,0.13887717,109540.0,109530.0,0.3652]
[1748242397912,0.50482431,109540.0,109530.0,0.3652]
[1748242398096,0.13887717,109540.0,109530.0,0.3652]
[1748242398759,0.50482431,109540.0,109530.0,0.3652]
[1748242399894,0.13887717,109540.0,109530.0,0.3652]
[1748242400298,0.13287717,109540.0,109530.0,0.3652]
[1748242401245,0.49882431,109540.0,109530.0,0.3652]
[1748242405853,0.5073343,109540.0,109530.0,0.3652]
[1748242407339,0.5013343,109540.0,109530.0,0.3652]
[1748242414496,0.4953343,109540.0,109530.0,0.3652]
[1748242414695,0.12938716,109540.0,109530.0,0.3652]
[1748242415116,0.4953343,109540.0,109530.0,0.3652]
[1748242415376,0.50407247,109540.0,109530.0,0.3652]
[1748242415944,0.50413625,109540.0,109530.0,0.3652]
[1748242417686,0.52343625,109540.0,109530.0,0.3652]
[1748242418406,0.88944717,109540.0,109530.0,0.3652]
[1748242418587,0.52343625,109540.0,109530.0,0.3652]
[1748242418795,0.5298364,109540.0,109530.0,0.3652]
[1748242421442,0.5238364,109540.0,109530.0,0.3652]
[1748242423102,0.5238364,109540.0,109530.0,1.64723276]
[1748242423103,0.020684,109540.0,109530.0,1.64723276]
[1748242423322,0.14160809,109560.0,109540.0,0.04836297]
[1748242423531,0.14259549,109560.0,109550.0,1.28287024]
[1748242423743,0.14259549,109560.0,109550.0,1.86634985]
[1748242423960,0.14160809,109560.0,109550.0,1.50085919]
[1748242424174,0.12706709,109560.0,109550.0,1.95553475]
[1748242424409,0.12706709,109560.0,109550.0,1.92687611]
[1748242424639,0.12706709,109560.0,109550.0,1.95553475]
[1748242424863,0.12706709,109560.0,109550.0,1.89851314]
[1748242425084,0.12706709,109560.0,109550.0,1.9119427]
[1748242425966,0.12706709,109560.0,109550.0,1.9159427]
[1748242426367,0.12706709,109560.0,109550.0,1.9119427]
[1748242426738,0.12706709,109560.0,109550.0,1.9189427]
[1748242426939,0.12706709,109560.0,109550.0,1.9239427]
[1748242427168,0.12706709,109560.0,109550.0,1.9239027]
[1748242427370,0.12706709,109560.0,109550.0,1.7781427]
[1748242427573,0.12706709,109560.0,109550.0,1.9239027]
[1748242428671,0.12706709,109560.0,109550.0,1.8507799]
[1748242428908,0.12706709,109560.0,109550.0,1.7050199]
[1748242429149,0.12706709,109560.0,109550.0,1.8507799]
[1748242429395,0.12106709,109560.0,109550.0,1.8507799]
[1748242431324,0.12106709,109560.0,109550.0,1.11968212]
[1748242431765,0.12106709,109560.0,109550.0,1.8507799]
[1748242433287,0.12106709,109560.0,109550.0,1.11968212]
[1748242433497,0.12106709,109560.0,109550.0,1.8507799]
[1748242436945,0.11506709,109560.0,109550.0,1.8507799]
[1748242439976,0.11506709,109560.0,109550.0,1.11968212]
[1748242441493,0.11506709,109560.0,109550.0,0.97392212]
[1748242441719,0.11506709,109560.0,109550.0,1.11964212]
[1748242442557,0.11506709,109560.0,109550.0,1.14698012]
[1748242444877,0.10906709,109560.0,109550.0,1.14698012]
[1748242449788,0.10906709,109560.0,109550.0,1.00126012]
[1748242449913,0.10906709,109560.0,109550.0,1.14698012]
[1748242452333,0.10306709,109560.0,109550.0,1.14698012]
[1748242453998,0.10306709,109560.0,109550.0,1.00126012]
[1748242454239,0.10992604,109570.0,109560.0,0.0385]
[1748242454481,0.10992604,109570.0,109560.0,5.10751958]
[1748242454754,0.10992604,109570.0,109560.0,5.35281503]
[1748242455019,0.10992604,109570.0,109560.0,5.38147367]
[1748242455020,0.07023604,109570.0,109560.0,5.38147367]
[1748242455304,0.05023604,109570.0,109560.0,6.08355587]
[1748242455515,0.05023604,109570.0,109560.0,6.53411259]
[1748242455516,0.02414739,109570.0,109560.0,6.53411259]
[1748242455727,0.02414739,109570.0,109560.0,6.54211259]
[1748242456593,0.02414739,109570.0,109560.0,6.55011259]
[1748242457223,0.11156739,109590.0,109560.0,6.55011259]
[1748242457435,0.11156739,109590.0,109580.0,0.76804084]
[1748242457646,0.11271493,109590.0,109580.0,5.5422364]
[1748242457871,0.11171643,109590.0,109580.0,5.9072664]
[1748242458085,0.11171643,109590.0,109580.0,5.78199837]
[1748242458296,0.11171643,109590.0,109580.0,5.74516837]
[1748242458505,0.11171643,109590.0,109580.0,5.35442753]
[1748242458928,0.11171643,109590.0,109580.0,6.08516837]
[1748242459139,0.11171643,109590.0,109580.0,6.08916837]
[1748242459341,0.11171643,109590.0,109580.0,5.35842753]
[1748242459516,0.11171643,109590.0,109580.0,6.09949522]
[1748242459726,0.11171643,109590.0,109580.0,6.10449522]
[1748242459926,0.11171643,109590.0,109580.0,6.09416837]
[1748242460270,0.10571643,109590.0,109580.0,6.09416837]
[1748242460506,0.10571643,109590.0,109580.0,5.36342753]
[1748242460684,0.10571643,109590.0,109580.0,6.0658054]
[1748242462139,0.10571643,109590.0,109580.0,6.09478263]
[1748242462499,0.10571643,109590.0,109580.0,6.0658054]
[1748242464417,0.10571643,109590.0,109580.0,6.09478263]
[1748242464857,0.10571643,109590.0,109580.0,5.70043498]
[1748242465056,0.10571643,109590.0,109580.0,5.75674021]
[1748242465259,0.10571643,109590.0,109580.0,5.72776298]
[1748242466257,0.10571643,109590.0,109580.0,5.75674021]
[1748242466655,0.10571643,109590.0,109580.0,5.72776298]
[1748242467011,0.10571643,109590.0,109580.0,6.12211063]
[1748242467788,0.09971643,109590.0,109580.0,6.11711063]
[1748242468134,0.09971643,109590.0,109580.0,6.12011063]
[1748242468335,0.09971643,109590.0,109580.0,6.12611063]
[1748242469194,0.09971643,109590.0,109580.0,5.98043063]
[1748242469389,0.09971643,109590.0,109580.0,6.0971334]
[1748242470010,0.09971643,109590.0,109580.0,6.2634534]
[1748242470810,0.09971643,109590.0,109580.0,6.29243063]
[1748242471409,0.09971643,109590.0,109580.0,5.98043063]
[1748242471611,0.09971643,109590.0,109580.0,5.46383685]
[1748242473042,0.09971643,109590.0,109580.0,4.50576867]
[1748242474716,0.09971643,109590.0,109580.0,4.54426867]
[1748242474910,0.09971643,109590.0,109580.0,4.54750803]
[1748242475363,0.09971643,109590.0,109580.0,4.51560985]
[1748242475566,0.09371643,109590.0,109580.0,4.51560985]
[1748242475978,0.09371643,109590.0,109580.0,4.54750803]
[1748242476675,0.09371643,109590.0,109580.0,4.51560985]
[1748242477117,0.09371643,109590.0,109580.0,4.55340803]
[1748242477856,0.09371643,109590.0,109580.0,4.54640803]
[1748242478055,0.09371643,109590.0,109580.0,4.55040803]
[1748242478295,0.09371643,109590.0,109580.0,4.52750985]
[1748242478495,0.09371643,109590.0,109580.0,4.51750985]
[1748242478723,0.09371643,109590.0,109580.0,4.50850985]
[1748242478921,0.09371643,109590.0,109580.0,4.49453262]
[1748242479813,0.09371643,109590.0,109580.0,4.5264308]
[1748242480244,0.09371643,109590.0,109580.0,4.7455645]
[1748242480917,0.09371643,109590.0,109580.0,4.77214321]
[1748242481128,0.08643536,109590.0,109580.0,4.77214321]
[1748242481337,0.02373558,109600.0,109590.0,0.0055]
[1748242481557,0.0166869,109670.0,109640.0,0.01423]
[1748242481768,1.6039068,109650.0,109640.0,5.0843337]
[1748242481976,1.41678571,109650.0,109640.0,5.07581637]
[1748242482180,1.40950464,109650.0,109640.0,5.45773637]
[1748242482404,1.40950464,109650.0,109640.0,5.15081637]
[1748242482598,1.38131962,109650.0,109640.0,5.23536193]
[1748242482852,1.38131962,109650.0,109640.0,5.59913378]
[1748242483081,1.34076629,109650.0,109640.0,5.21131355]
[1748242483307,1.34076629,109650.0,109640.0,5.52323355]
[1748242483515,1.33348522,109650.0,109640.0,5.52323355]
[1748242483763,1.32620415,109650.0,109640.0,5.52319355]
[1748242484183,1.31892308,109650.0,109640.0,5.52319355]
[1748242484356,1.31892308,109650.0,109640.0,5.87119355]
[1748242484564,1.31164201,109650.0,109640.0,5.87119355]
[1748242484756,1.31164201,109650.0,109640.0,5.55931355]
[1748242485022,1.30436094,109650.0,109640.0,5.87119355]
[1748242485232,1.30436094,109650.0,109640.0,5.87819355]
[1748242485433,1.29707987,109650.0,109640.0,5.87819355]
[1748242485815,1.29707987,109650.0,109640.0,5.56631355]
[1748242486060,1.29707987,109650.0,109640.0,5.87819355]
[1748242486459,1.29707987,109650.0,109640.0,5.56631355]
[1748242486664,1.33737987,109650.0,109640.0,4.15621955]
[1748242486870,1.33737987,109650.0,109640.0,3.94417055]
[1748242487102,1.33737987,109650.0,109640.0,4.08977055]
[1748242487807,1.33737987,109650.0,109640.0,4.07554055]
[1748242488034,1.33737987,109650.0,109640.0,3.71072685]
[1748242488259,1.33737987,109650.0,109640.0,3.87071778]
[1748242489692,1.33737987,109650.0,109640.0,3.71921778]
[1748242489906,1.33737987,109650.0,109640.0,3.86481778]
[1748242490489,1.33137987,109650.0,109640.0,3.71921778]
[1748242490691,1.33137987,109650.0,109640.0,3.86481778]
[1748242491129,1.33137987,109650.0,109640.0,2.98587066]
[1748242492568,1.33137987,109650.0,109640.0,2.84027066]
[1748242492938,1.33137987,109650.0,109640.0,2.98947478]
[1748242494134,1.33137987,109650.0,109640.0,2.84387478]
[1748242494338,1.33137987,109650.0,109640.0,2.98947478]
[1748242495111,1.33137987,109650.0,109640.0,2.84387478]
[1748242495321,1.33137987,109650.0,109640.0,2.98947478]
[1748242495552,1.33137987,109650.0,109640.0,1.76312578]
[1748242495755,1.33137987,109650.0,109640.0,1.61752578]
[1748242495870,1.33137987,109650.0,109640.0,1.76312578]
[1748242496087,1.33137987,109650.0,109640.0,1.43909778]
[1748242496306,1.33137987,109650.0,109640.0,1.58469778]
[1748242496888,1.33137987,109650.0,109640.0,1.59548628]
[1748242497253,1.69669754,109650.0,109640.0,1.28590528]
[1748242497452,1.69669754,109650.0,109640.0,0.87555943]
[1748242498044,1.69069754,109650.0,109640.0,0.87555943]
[1748242498957,1.32537987,109650.0,109640.0,0.8611685]
[1748242499195,1.69069754,109650.0,109640.0,0.8611685]
[1748242499684,1.69069754,109650.0,109640.0,0.8531685]
[1748242500075,1.69069754,109650.0,109640.0,0.84938]
[1748242501015,1.32537987,109650.0,109640.0,0.84238]
[1748242501175,1.32537987,109650.0,109640.0,0.84838]
[1748242501557,1.32537987,109650.0,109640.0,1.097125]
[1748242502403,1.32537987,109650.0,109640.0,1.1079135]
[1748242502797,1.32537987,109650.0,109640.0,1.07126121]
[1748242502986,1.32537987,109650.0,109640.0,1.0387825]
[1748242503214,1.32537987,109650.0,109640.0,1.07126121]
[1748242503411,1.32537987,109650.0,109640.0,1.0387825]
[1748242504250,1.32537987,109650.0,109640.0,1.12832806]
[1748242504703,1.32537987,109650.0,109640.0,1.13193049]
[1748242505487,1.28507987,109650.0,109640.0,1.13193049]
[1748242506041,1.27907987,109650.0,109640.0,1.11753956]
[1748242507011,1.27907987,109650.0,109640.0,1.11743956]
[1748242507222,1.27907987,109650.0,109640.0,1.12443956]
[1748242507415,1.27907987,109650.0,109640.0,1.14644096]
[1748242507786,1.27907987,109650.0,109640.0,1.15444096]
[1748242508197,1.27779917,109650.0,109640.0,1.15444096]
[1748242510258,1.27779917,109650.0,109640.0,1.14854096]
[1748242510890,1.27779917,109650.0,109640.0,1.11953956]
[1748242511649,1.31939917,109650.0,109640.0,1.29285956]
[1748242511849,1.31939917,109650.0,109640.0,1.26513956]
[1748242513487,1.31339917,109650.0,109640.0,1.29402998]
[1748242513872,1.31339917,109650.0,109640.0,1.32650869]
[1748242514064,1.27179917,109650.0,109640.0,1.32134298]
[1748242514278,1.27179917,109650.0,109640.0,1.29245256]
[1748242515293,1.27179917,109650.0,109640.0,2.02226244]
[1748242516194,1.27179917,109650.0,109640.0,2.02816244]
[1748242517314,1.27179917,109650.0,109640.0,1.29835256]
[1748242517568,1.27179917,109650.0,109640.0,1.6632575]
[1748242518040,1.27179917,109650.0,109640.0,2.02816244]
[1748242518461,1.27179917,109650.0,109640.0,1.29835256]
[1748242518610,1.27179917,109650.0,109640.0,1.6632575]
[1748242519220,1.27179917,109650.0,109640.0,2.02816244]
[1748242519983,1.27179917,109650.0,109640.0,1.29835256]
[1748242520198,1.27179917,109650.0,109640.0,1.6632575]
[1748242521178,1.26579917,109650.0,109640.0,1.8381375]
[1748242521403,1.26579917,109650.0,109640.0,2.20304244]
[1748242521604,1.26579917,109650.0,109640.0,1.46733256]
[1748242521822,1.26579917,109650.0,109640.0,2.19714244]
[1748242523268,1.26579917,109650.0,109640.0,1.46733256]
[1748242523523,1.26579917,109650.0,109640.0,2.19714244]
[1748242523745,1.26579917,109650.0,109640.0,2.41635614]
[1748242524123,1.28639917,109650.0,109640.0,2.41635614]
[1748242524579,1.28639917,109650.0,109640.0,1.68654626]
[1748242524789,1.30709917,109650.0,109640.0,1.7309712]
[1748242524994,1.30709917,109650.0,109640.0,2.0514512]
[1748242526540,1.28649917,109650.0,109640.0,2.0514512]
[1748242526678,1.26579917,109650.0,109640.0,2.0514512]
[1748242527011,1.26579917,109650.0,109640.0,2.41635614]
[1748242528019,1.26579917,109650.0,109640.0,2.4163472]
[1748242528225,1.28666181,109650.0,109640.0,2.4163472]
[1748242528377,1.30926181,109650.0,109640.0,2.4163472]
[1748242529162,1.30326181,109650.0,109640.0,2.4163472]
[1748242530102,1.30326181,109650.0,109640.0,2.2707872]
[1748242530334,1.30326181,109650.0,109640.0,2.4163472]
[1748242531345,1.30326181,109650.0,109640.0,2.1971335]
[1748242531724,1.30326181,109650.0,109640.0,1.14685256]
[1748242531942,1.30326181,109650.0,109640.0,1.65731303]
[1748242532607,1.30326181,109650.0,109640.0,1.51175303]
[1748242532780,1.30326181,109650.0,109640.0,1.68623537]
[1748242533670,1.30326181,109650.0,109640.0,1.54067537]